Departmental family,Entity,Date Paid,Expense type,Expense Area,Supplier,Transaction Number, Amount , Description , Supplier Type , Expenditure Type 
UK Statistics Authority,Office for National Statistics,01-Feb-18,ICT Outsourcing & Maintenance/Support,Technology Services,Oracle Corporation UK Ltd,70642,"28,250.11", Information Management services, Large , Programme 
UK Statistics Authority,Office for National Statistics,01-Feb-18,ICT Outsourcing & Maintenance/Support,Technology Services,Technimove Limited,70645,"25,518.00", Information Management services, SME , Programme 
UK Statistics Authority,Office for National Statistics,02-Feb-18,Market Research,Public Policy,Kantar Public,71052,"54,753.60", Information Management Services, SME , Programme 
UK Statistics Authority,Office for National Statistics,02-Feb-18,ICT Outsourcing & Maintenance/Support,Technology Services,Crown Hosting Data Centres Limited,71055,"13,948.70", Cloud Services, SME , Programme 
UK Statistics Authority,Office for National Statistics,02-Feb-18,ICT Outsourcing & Maintenance/Support,Technology Services,Crown Hosting Data Centres Limited,71055,"16,122.78", Cloud Services, SME , Programme 
UK Statistics Authority,Office for National Statistics,02-Feb-18,Surveys,Social Survey Operations,NISRA,71065,"87,996.96", Statistical services, Large , Programme 
UK Statistics Authority,Office for National Statistics,02-Feb-18,Postage,Population & Public Policy,Royal Mail Direct,71077,"36,480.00", Outgoing Mail, Large , Programme 
UK Statistics Authority,Office for National Statistics,05-Feb-18,Surveys,Prices,Kantar Public,71080,"1,665.60", Information Management Services, SME , Programme 
UK Statistics Authority,Office for National Statistics,05-Feb-18,Surveys,Prices,Kantar Public,71080,"183,068.40", Information Management Services, SME , Programme 
UK Statistics Authority,Office for National Statistics,05-Feb-18,ICT Outsourcing & Maintenance/Support,Technology Services,QA Ltd,71090,"30,504.00", Information Management Services, Large , Programme 
UK Statistics Authority,Office for National Statistics,05-Feb-18,Childcare Services,"Finance, Audit & Business Development",Computershare Voucher Services,71093,"41,634.02", Childcare Vouchers , Large , Programme 
UK Statistics Authority,Office for National Statistics,06-Feb-18,ICT Outsourcing & Maintenance/Support,Technology Services,Crown Hosting Data Centres Limited,71385,"1,419.61", Cloud Services, SME , Programme 
UK Statistics Authority,Office for National Statistics,06-Feb-18,ICT Outsourcing & Maintenance/Support,Technology Services,Crown Hosting Data Centres Limited,71385,"22,828.96", Cloud Services, SME , Programme 
UK Statistics Authority,Office for National Statistics,06-Feb-18,ICT Outsourcing & Maintenance/Support,Technology Services,Crown Hosting Data Centres Limited,71385,"4,552.21", Cloud Services, SME , Programme 
UK Statistics Authority,Office for National Statistics,06-Feb-18,Contractors,Methodology,Concept Information Technology Ltd T/A Concept Resourcing,71386,"17,170.38", Information Management Services, Large , Programme 
UK Statistics Authority,Office for National Statistics,06-Feb-18,Short-Term Contract & Agency Staff,Data Architecture,Concept Information Technology Ltd T/A Concept Resourcing,71386,"3,976.95", Information Management Services, Large , Programme 
UK Statistics Authority,Office for National Statistics,06-Feb-18,Short-Term Contract & Agency Staff,Methodology,Concept Information Technology Ltd T/A Concept Resourcing,71386,"14,032.65", Information Management Services, Large , Programme 
UK Statistics Authority,Office for National Statistics,06-Feb-18,Short-Term Contract & Agency Staff,Methodology,Concept Information Technology Ltd T/A Concept Resourcing,71386,"5,082.24", Information Management Services, Large , Programme 
UK Statistics Authority,Office for National Statistics,06-Feb-18,Short-Term Contract & Agency Staff,Methodology,Concept Information Technology Ltd T/A Concept Resourcing,71386,"9,317.53", Information Management Services, Large , Programme 
UK Statistics Authority,Office for National Statistics,06-Feb-18,IT Purchases > 2K,Technology Services,SCC,71388,"15,182.56", Information Management Services, Large , Programme 
UK Statistics Authority,Office for National Statistics,06-Feb-18,IT Purchases > 2K,Technology Services,SCC,71388,"26,859.98", Information Management Services, Large , Programme 
UK Statistics Authority,Office for National Statistics,07-Feb-18,ICT Outsourcing & Maintenance/Support,Technology Services,RSM Partners Ltd,71398,"53,996.26", Information Management Services, SME , Programme 
UK Statistics Authority,Office for National Statistics,07-Feb-18,Travel & Subsistence,"Finance, Audit & Business Development",Redfern Travel,71403,"64,893.04", Travel and Accommodation Booking Service , SME , Programme 
UK Statistics Authority,Office for National Statistics,08-Feb-18,Contractors,Economic Statistics Transformation,Certes Computing Ltd,71765,"10,993.02", Information Management Services, SME , Programme 
UK Statistics Authority,Office for National Statistics,08-Feb-18,Contractors,Service Design and Management,Certes Computing Ltd,71765,"19,010.46", Information Management Services, SME , Programme 
UK Statistics Authority,Office for National Statistics,09-Feb-18,Procurement Card,"Finance, Audit & Business Development",Royal Bank of Scotland,71781,"95,523.80", Multiple Procurement Card Purchases  , Large , Programme 
UK Statistics Authority,Office for National Statistics,09-Feb-18,Stationery,"Finance, Audit & Business Development",Royal Bank of Scotland,71781,"6,508.88", Multiple Procurement Card Statioanery Purchases  , Large , Programme 
UK Statistics Authority,Office for National Statistics,12-Feb-18,IT Contractual Services,Digital Services,Methods Digital Ltd,72131,"19,800.00", Information Management Services, Large , Programme 
UK Statistics Authority,Office for National Statistics,12-Feb-18,IT Contractual Services,Digital Services,Methods Digital Ltd,72131,"47,250.00", Information Management Services, Large , Programme 
UK Statistics Authority,Office for National Statistics,12-Feb-18,IT Contractual Services,Technology Services,Methods Digital Ltd,72131,"19,800.00", Information Management Services, Large , Programme 
UK Statistics Authority,Office for National Statistics,12-Feb-18,Contractors,Economic Statistics Transformation,Certes Computing Ltd,72132,"8,646.48", Information Management Services, SME , Programme 
UK Statistics Authority,Office for National Statistics,12-Feb-18,Contractors,Service Design & Assurance,Certes Computing Ltd,72132,"10,126.08", Information Management Services, SME , Programme 
UK Statistics Authority,Office for National Statistics,12-Feb-18,Contractors,Service Design and Management,Certes Computing Ltd,72132,"12,748.16", Information Management Services, SME , Programme 
UK Statistics Authority,Office for National Statistics,12-Feb-18,Contractors,"Economic Statistics Research, Strategy & Architecture",Parity Resources Limited,72137,"4,613.76", Information Management Services, Large , Programme 
UK Statistics Authority,Office for National Statistics,12-Feb-18,Contractors,Economic Statistics Transformation,Parity Resources Limited,72137,"5,763.60", Information Management Services, Large , Programme 
UK Statistics Authority,Office for National Statistics,12-Feb-18,Contractors,People And Performance,Parity Resources Limited,72137,"3,524.40", Information Management Services, Large , Programme 
UK Statistics Authority,Office for National Statistics,12-Feb-18,Contractors,Portfolio Management,Parity Resources Limited,72137,"4,485.60", Information Management Services, Large , Programme 
UK Statistics Authority,Office for National Statistics,12-Feb-18,Contractors,Service Design & Assurance,Parity Resources Limited,72137,"16,135.56", Information Management Services, Large , Programme 
UK Statistics Authority,Office for National Statistics,12-Feb-18,Contractors,Service Design and Management,Parity Resources Limited,72137,"23,389.20", Information Management Services, Large , Programme 
UK Statistics Authority,Office for National Statistics,12-Feb-18,Contractors,Social Survey Transformation,Parity Resources Limited,72137,"10,957.68", Information Management Services, Large , Programme 
UK Statistics Authority,Office for National Statistics,12-Feb-18,Contractors,Technology Services,Parity Resources Limited,72137,"5,767.20", Information Management Services, Large , Programme 
UK Statistics Authority,Office for National Statistics,12-Feb-18,Contractors,Technology Services,Parity Resources Limited,72137,"31,723.46", Information Management Services, Large , Programme 
UK Statistics Authority,Office for National Statistics,12-Feb-18,Short-Term Contract & Agency Staff,Data Architecture,Parity Resources Limited,72137,956.38, Information Management Services, Large , Programme 
UK Statistics Authority,Office for National Statistics,12-Feb-18,Short-Term Contract & Agency Staff,Service Centre,Parity Resources Limited,72137,699.74, Information Management Services, Large , Programme 
UK Statistics Authority,Office for National Statistics,12-Feb-18,Short-Term Contract & Agency Staff,Service Design and Management,Parity Resources Limited,72137,784.85, Information Management Services, Large , Programme 
UK Statistics Authority,Office for National Statistics,13-Feb-18,Contractors,"Economic Statistics Strategy, Change & Support",LA International,72418,"21,860.07", Information Management Services, SME , Programme 
UK Statistics Authority,Office for National Statistics,13-Feb-18,Contractors,Technology Services,LA International,72418,"10,226.88", Information Management Services, SME , Programme 
UK Statistics Authority,Office for National Statistics,13-Feb-18,IT Contractual Services,Technology Services,QA Ltd,72420,"44,460.00", Information Management Services, Large , Programme 
UK Statistics Authority,Office for National Statistics,14-Feb-18,High Street Vouchers,"Finance, Audit & Business Development",Park Retail Ltd,72431,"84,946.82", Social Surveys Incentive Vouchers, Large , Programme 
UK Statistics Authority,Office for National Statistics,14-Feb-18,Postage,"Finance, Audit & Business Development",Pitney Bowes Ltd,72434,"28,849.96", Replenshed Franking Machine Balance, Large , Programme 
UK Statistics Authority,Office for National Statistics,14-Feb-18,Travel & Subsistence,"Finance, Audit & Business Development",Redfern Travel,72435,"56,226.56", Travel and Accommodation Booking Service , SME , Programme 
UK Statistics Authority,Office for National Statistics,14-Feb-18,Consultancy,Census Delivery,Deloitte,72440,"71,016.00", Census Information Management Services, SME , Programme 
UK Statistics Authority,Office for National Statistics,15-Feb-18,ICT Outsourcing & Maintenance/Support,Technology Services,Equiniti Limited,72769,"14,450.74", Information Management Services, Large , Programme 
UK Statistics Authority,Office for National Statistics,15-Feb-18,ICT Outsourcing & Maintenance/Support,Technology Services,Equiniti Limited,72769,"32,762.06", Information Management Services, Large , Programme 
UK Statistics Authority,Office for National Statistics,15-Feb-18,Specialist Property Inspection,Service Centre,Cadspec Ltd,72771,"30,000.00", License and Hardware Maintenance, SME , Programme 
UK Statistics Authority,Office for National Statistics,15-Feb-18,IT Contractual Services,Digital Services,Methods Digital Ltd,72773,"31,500.00", Information Management Services, Large , Programme 
UK Statistics Authority,Office for National Statistics,15-Feb-18,IT Contractual Services,Digital Services,Methods Digital Ltd,72773,"22,680.00", Information Management Services, Large , Programme 
UK Statistics Authority,Office for National Statistics,15-Feb-18,Civil Service Resourcing,Finance,Cabinet Office,72781,"8,760.60", Civil Service Recruitment Fees, Large , Programme 
UK Statistics Authority,Office for National Statistics,15-Feb-18,Civil Service Resourcing,Methodology Data Research Development,Cabinet Office,72781,"12,163.20", Civil Service Recruitment Fees, Large , Programme 
UK Statistics Authority,Office for National Statistics,15-Feb-18,Civil Service Resourcing,Monitoring And Assessment,Cabinet Office,72781,"6,775.80", Civil Service Recruitment Fees, Large , Programme 
UK Statistics Authority,Office for National Statistics,15-Feb-18,Civil Service Resourcing,Private Office,Cabinet Office,72781,"18,792.00", Civil Service Recruitment Fees, Large , Programme 
UK Statistics Authority,Office for National Statistics,15-Feb-18,Surveys,Prices,UK Finance,72784,"43,680.00", Statistical Services, SME , Programme 
UK Statistics Authority,Office for National Statistics,16-Feb-18,Contractors,"Economic Statistics Strategy, Change & Support",Mango Solutions,72785,"19,608.22", Information Management Services, SME , Programme 
UK Statistics Authority,Office for National Statistics,16-Feb-18,Contractors,"Economic Statistics Strategy, Change & Support",Mango Solutions,72785,"7,188.35", Information Management Services, SME , Programme 
UK Statistics Authority,Office for National Statistics,16-Feb-18,IT Contractual Services,Digital Services,Mango Solutions,72785,"10,782.52", Information Management Services, SME , Programme 
UK Statistics Authority,Office for National Statistics,16-Feb-18,Training & Development,Data Science Campus Leadership,Mango Solutions,72785,"5,119.91", Information Management Services, SME , Programme 
UK Statistics Authority,Office for National Statistics,16-Feb-18,Facilities Management Contract Payments,"Finance, Audit & Business Development",Vinci Construction UK Limited,72789,"108,403.82", Facilities Management , Large , Programme 
UK Statistics Authority,Office for National Statistics,16-Feb-18,Consultancy,Census Delivery,Deloitte,72807,"52,812.00", Census Information Management Services, SME , Programme 
UK Statistics Authority,Office for National Statistics,16-Feb-18,Capital Works < 25K,Service Centre,Paramount Office Interiors Ltd,72811,"11,707.02", Major Works Newport, SME , Programme 
UK Statistics Authority,Office for National Statistics,16-Feb-18,Major Works Over 25K,Service Centre,Paramount Office Interiors Ltd,72811,"16,730.82", Major Works Newport, SME , Programme 
UK Statistics Authority,Office for National Statistics,16-Feb-18,Civil Service Resourcing,Portfolio Management,Cabinet Office,72821,"13,257.56", Civil Service Recruitment Fees, Large , Programme 
UK Statistics Authority,Office for National Statistics,16-Feb-18,Civil Service Resourcing,Portfolio Management,Cabinet Office,72821,"13,257.56", Civil Service Recruitment Fees, Large , Programme 
UK Statistics Authority,Office for National Statistics,16-Feb-18,Electricity,Service Centre,EDF Energy,30000744,"31,024.60", Electricity Titchfield, Large , Programme 
UK Statistics Authority,Office for National Statistics,16-Feb-18,Electricity,Service Centre,EDF Energy,30000745,"30,146.77", Electricity Newport, Large , Programme 
UK Statistics Authority,Office for National Statistics,21-Feb-18,Surveys,Social Survey Operations,Ipsos MORI,73461,"85,740.00", Statistical Services, Large , Programme 
UK Statistics Authority,Office for National Statistics,21-Feb-18,Surveys,Social Survey Transformation,Ipsos MORI,73461,"153,367.20", Statistical Services, Large , Programme 
UK Statistics Authority,Office for National Statistics,21-Feb-18,ICT Outsourcing & Maintenance/Support,Technology Services,CenturyLink Communications UK Ltd,73468,"106,267.74", Information Management Services , Large , Programme 
UK Statistics Authority,Office for National Statistics,21-Feb-18,Telecommunications,Social Survey Operations,CenturyLink Communications UK Ltd,73468,"2,551.20", Information Management Services , Large , Programme 
UK Statistics Authority,Office for National Statistics,21-Feb-18,Telecommunications,Technology Services,CenturyLink Communications UK Ltd,73468,"6,578.52", Information Management Services , Large , Programme 
UK Statistics Authority,Office for National Statistics,21-Feb-18,ICT Outsourcing & Maintenance/Support,Technology Services,Mango Solutions,73484,"54,990.00", Information Management Services, SME , Programme 
UK Statistics Authority,Office for National Statistics,21-Feb-18,IT Contractual Services,Digital Services,Mastek,73485,"14,400.00", Information Management Services, Large , Programme 
UK Statistics Authority,Office for National Statistics,21-Feb-18,IT Contractual Services,Technology Services,Mastek,73485,"15,960.00", Information Management Services, Large , Programme 
UK Statistics Authority,Office for National Statistics,21-Feb-18,Travel & Subsistence,"Finance, Audit & Business Development",Redfern Travel,73491,"54,279.44", Travel and Accommodation Booking Service , SME , Programme 
UK Statistics Authority,Office for National Statistics,22-Feb-18,Furniture > 2K Per Item,"Economic Statistics Research, Strategy & Architecture",The Senator Group,73665,"64,774.43", Major Works Newport, Large , Programme 
UK Statistics Authority,Office for National Statistics,22-Feb-18,Miscellaneous Minor Works,Data Science Campus Leadership,The Senator Group,73665,641.14, Major Works Newport, Large , Programme 
UK Statistics Authority,Office for National Statistics,22-Feb-18,Office Furniture,Methodology Data Research Development,The Senator Group,73665,"49,141.38", Major Works Newport, Large , Programme 
UK Statistics Authority,Office for National Statistics,22-Feb-18,Contractors,"Economic Statistics Research, Strategy & Architecture",Parity Resources Limited,73669,"4,037.04", Information Management Services, Large , Programme 
UK Statistics Authority,Office for National Statistics,22-Feb-18,Contractors,Service Design & Assurance,Parity Resources Limited,73669,"3,600.00", Information Management Services, Large , Programme 
UK Statistics Authority,Office for National Statistics,22-Feb-18,Contractors,Technology Services,Parity Resources Limited,73669,114.48, Information Management Services, Large , Programme 
UK Statistics Authority,Office for National Statistics,22-Feb-18,Short-Term Contract & Agency Staff,Public Population & Policy Transformation Central,Parity Resources Limited,73669,"2,402.89", Information Management Services, Large , Programme 
UK Statistics Authority,Office for National Statistics,22-Feb-18,Short-Term Contract & Agency Staff,Service Centre,Parity Resources Limited,73669,"3,494.65", Information Management Services, Large , Programme 
UK Statistics Authority,Office for National Statistics,22-Feb-18,Short-Term Contract & Agency Staff,Service Design and Management,Parity Resources Limited,73669,"10,957.68", Information Management Services, Large , Programme 
UK Statistics Authority,Office for National Statistics,22-Feb-18,Short-Term Contract & Agency Staff,Stakeholder Engagement And Comms,Parity Resources Limited,73669,"5,390.71", Information Management Services, Large , Programme 
UK Statistics Authority,Office for National Statistics,22-Feb-18,Short-Term Contract & Agency Staff,Wellbeing Inequalities Sustainability & Environment,Parity Resources Limited,73669,601.01, Information Management Services, Large , Programme 
UK Statistics Authority,Office for National Statistics,22-Feb-18,Contractors,"Economic Statistics Strategy, Change & Support",Mango Solutions,73677,"36,660.00", Information Management Services, SME , Programme 
UK Statistics Authority,Office for National Statistics,22-Feb-18,ICT Outsourcing & Maintenance/Support,Data Science Campus Leadership,Mango Solutions,73677,936, Information Management Services, SME , Programme 
UK Statistics Authority,Office for National Statistics,22-Feb-18,Surveys,Surveys And Economic Indicators,IFF Research,73678,"159,177.50", Statistical Services, Large , Programme 
UK Statistics Authority,Office for National Statistics,22-Feb-18,Contractors,Technology Services,E Synergy Solutions,73680,"35,310.00", Information Management Services , SME , Programme 
UK Statistics Authority,Office for National Statistics,22-Feb-18,IT Contractual Services,Technology Services,E Synergy Solutions,73680,"27,264.00", Information Management Services , SME , Programme 
UK Statistics Authority,Office for National Statistics,22-Feb-18,IT Contractual Services,Technology Services,E Synergy Solutions,73680,"6,600.00", Information Management Services , SME , Programme 
UK Statistics Authority,Office for National Statistics,22-Feb-18,ICT Outsourcing & Maintenance/Support,Technology Services,Amazon Web Services Inc,30000751,"35,246.59", Web Services, Large , Programme 
UK Statistics Authority,Office for National Statistics,26-Feb-18,Contractors,Central Support,E Synergy Solutions,74036,"17,820.00", Information Management Services , SME , Programme 
UK Statistics Authority,Office for National Statistics,26-Feb-18,Contractors,Technology Services,E Synergy Solutions,74036,"147,550.20", Information Management Services , SME , Programme 
UK Statistics Authority,Office for National Statistics,26-Feb-18,IT Contractual Services,Digital Publishing,E Synergy Solutions,74036,"17,160.00", Information Management Services , SME , Programme 
UK Statistics Authority,Office for National Statistics,26-Feb-18,IT Contractual Services,Technology Services,E Synergy Solutions,74036,"112,596.00", Information Management Services , SME , Programme 
UK Statistics Authority,Office for National Statistics,26-Feb-18,IT Purchases > 2K,Technology Services,Stone Computers,74042,"74,460.00", Computer Hardware, Large , Programme 
UK Statistics Authority,Office for National Statistics,26-Feb-18,Non IT Purchases > 2K Per Item,Labour Market,The Senator Group,74044,"127,649.59", Major Works Newport, Large , Programme 
UK Statistics Authority,Office for National Statistics,26-Feb-18,Contractors,Data Architecture,LA International,74047,"7,048.56", Information Management Services, SME , Programme 
UK Statistics Authority,Office for National Statistics,26-Feb-18,Contractors,Sector And Fin Accs Bop,LA International,74047,"10,252.32", Information Management Services, SME , Programme 
UK Statistics Authority,Office for National Statistics,26-Feb-18,Contractors,Service Design & Assurance,LA International,74047,"20,757.52", Information Management Services, SME , Programme 
UK Statistics Authority,Office for National Statistics,26-Feb-18,Contractors,Technology Services,LA International,74047,"17,633.45", Information Management Services, SME , Programme 
UK Statistics Authority,Office for National Statistics,26-Feb-18,Specialist Property Inspection,Service Centre,GVA Grimley,74049,"71,400.00", Professional Valuation Fees, Large , Programme 
UK Statistics Authority,Office for National Statistics,26-Feb-18,Capital Major Works > 25K,Service Centre,Paramount Office Interiors Ltd,74050,"132,723.20", Major Works Titchfield, SME , Programme 
UK Statistics Authority,Office for National Statistics,26-Feb-18,Major Works Over 25K,Service Centre,Paramount Office Interiors Ltd,74050,"94,192.86", Major Works Titchfield, SME , Programme 
UK Statistics Authority,Office for National Statistics,26-Feb-18,IT Purchases > 2K,Technology Services,Computacenter (UK) Limited,74053,"63,616.08", Software Licenses, Large , Programme 
UK Statistics Authority,Office for National Statistics,26-Feb-18,Training & Development,"Knowledge, Learning & Capability",Beam Development & Training,74057,"52,200.00", Corporate Training, Large , Programme 
UK Statistics Authority,Office for National Statistics,26-Feb-18,Surveys,"Economic Statistics Strategy, Change & Support",Department for Work and Pensions,74060,"35,811.60", Statistical Services, Large , Programme 
